{"text_format":"3","workbook":"xlsx","n_sheets":4,"sheets":["Pirkinių sąrašas","Biudžeto analizė","Užduočių sąrašas","Bendras sąrašas"],"not_rendered":{"charts":2,"images":2,"defined_names":12},"read":"whole","date_system":"1900"}

{"sheet":"Pirkinių sąrašas","index":0,"n_rows":25,"n_cols":8,"rows_kept":25,"merged":[[2,1,2,7],[3,1,3,2],[4,4,6,7]]}
[null,"Atgal į mokyklą","Darbo kalendorius"]
[]
[null,"Sekti savo pirkinių eigą pagal Biudžeto analizė įvestas biudžeto kategorijų sumas."]
[null,"Biudžeto suvestinė",null,null,{"$f":"\"Pirkimo eiga (\"&COUNTIFS(Kontrolinis_sąrašas[Įsigyta], \">0\")&\" iš \"&COUNTIFS(Kontrolinis_sąrašas[Reikia įsigyti], \">0\")&\")\"","v":"Pirkimo eiga (1 iš 6)"}]
[null,"Biudžetas",{"v":1500,"d":"1,500.00 EUR"},null,{"$f":"IFERROR(COUNTIFS(Kontrolinis_sąrašas[Reikia įsigyti],\">0\",Kontrolinis_sąrašas[Įsigyta],\">0\")/NupirktųPrekiųSuma,0)","v":{"v":0.16666666666666666,"d":"17%"}}]
[null,"Pirkinių sąrašo bendroji suma",{"$f":"IFERROR(SUM(KontrolinioSąrašoBendrosIšlaidos), \"\")","v":{"v":365,"d":"365.00 EUR"}}]
[null,"Liko grynųjų",{"$f":"IFERROR(C5-C6, \"\")","v":{"v":1135,"d":"1,135.00 EUR"}}]
[null,"Pirkinių sąrašas"]
[null,"Prekė","Kategorija","Kiekis","Reikia įsigyti","Kaina","Įsigyta","Bendra kaina"]
[null,"Matematika","Vadovėliai",1,1,{"v":55,"d":"55.00 EUR"},1,{"$f":"IFERROR(Kontrolinis_sąrašas[Kiekis]*Kontrolinis_sąrašas[Kaina], \"\")","v":{"v":55,"d":"55.00 EUR"}}]
[null,"Anglų kalba","Vadovėliai",1,1,null,null,{"$f":"IFERROR(Kontrolinis_sąrašas[Kiekis]*Kontrolinis_sąrašas[Kaina], \"\")","v":0}]
[null,"Kuprinė","Priemonės",1,null,{"v":30,"d":"30.00 EUR"},null,{"$f":"IFERROR(Kontrolinis_sąrašas[Kiekis]*Kontrolinis_sąrašas[Kaina], \"\")","v":{"v":30,"d":"30.00 EUR"}}]
[null,"Skaičiuotuvas","Priemonės",1,{"$nulls":3},{"$f":"IFERROR(Kontrolinis_sąrašas[Kiekis]*Kontrolinis_sąrašas[Kaina], \"\")","v":0}]
[null,"Žymekliai","Priemonės",3,{"$nulls":3},{"$f":"IFERROR(Kontrolinis_sąrašas[Kiekis]*Kontrolinis_sąrašas[Kaina], \"\")","v":0}]
[null,"Uniforma","Drabužiai",2,1,{"v":100,"d":"100.00 EUR"},null,{"$f":"IFERROR(Kontrolinis_sąrašas[Kiekis]*Kontrolinis_sąrašas[Kaina], \"\")","v":{"v":200,"d":"200.00 EUR"}}]
[null,"Marškiniai, užsegami","Drabužiai",4,{"$nulls":3},{"$f":"IFERROR(Kontrolinis_sąrašas[Kiekis]*Kontrolinis_sąrašas[Kaina], \"\")","v":0}]
[null,"Marškinėliai","Drabužiai",5,{"$nulls":3},{"$f":"IFERROR(Kontrolinis_sąrašas[Kiekis]*Kontrolinis_sąrašas[Kaina], \"\")","v":0}]
[null,"Šortai","Drabužiai",2,{"$nulls":3},{"$f":"IFERROR(Kontrolinis_sąrašas[Kiekis]*Kontrolinis_sąrašas[Kaina], \"\")","v":0}]
[null,"Sportbačiai","Drabužiai",2,1,null,null,{"$f":"IFERROR(Kontrolinis_sąrašas[Kiekis]*Kontrolinis_sąrašas[Kaina], \"\")","v":0}]
[null,"Kojinės","Drabužiai",10,{"$nulls":3},{"$f":"IFERROR(Kontrolinis_sąrašas[Kiekis]*Kontrolinis_sąrašas[Kaina], \"\")","v":0}]
[null,"Pavasarinė striukė","Drabužiai",1,1,{"v":80,"d":"80.00 EUR"},null,{"$f":"IFERROR(Kontrolinis_sąrašas[Kiekis]*Kontrolinis_sąrašas[Kaina], \"\")","v":{"v":80,"d":"80.00 EUR"}}]
[null,"Megztiniai","Drabužiai",1,{"$nulls":3},{"$f":"IFERROR(Kontrolinis_sąrašas[Kiekis]*Kontrolinis_sąrašas[Kaina], \"\")","v":0}]
[null,"Medvilniniai nertiniai","Drabužiai",1,{"$nulls":3},{"$f":"IFERROR(Kontrolinis_sąrašas[Kiekis]*Kontrolinis_sąrašas[Kaina], \"\")","v":0}]
[null,"Apatiniai","Drabužiai",10,{"$nulls":3},{"$f":"IFERROR(Kontrolinis_sąrašas[Kiekis]*Kontrolinis_sąrašas[Kaina], \"\")","v":0}]
[null,"Žieminė striukė","Drabužiai",1,1,null,null,{"$f":"IFERROR(Kontrolinis_sąrašas[Kiekis]*Kontrolinis_sąrašas[Kaina], \"\")","v":0}]

{"sheet":"Biudžeto analizė","index":1,"n_rows":6,"n_cols":3,"rows_kept":6}
[null,"Biudžeto analizė"]
[null,"Įtraukti kategorijas ir biudžeto sumas stebėti pagal Pirkinių sąrašą."]
[null,"Kategorija","Bendra kaina"]
[null,"Drabužiai",{"$f":"IFERROR(SUMIFS(Kontrolinis_sąrašas[Bendra kaina],Kontrolinis_sąrašas[Kategorija],Kategorija[Kategorija]), \"\")","v":{"v":280,"d":"280.00 EUR"}}]
[null,"Priemonės",{"$f":"IFERROR(SUMIFS(Kontrolinis_sąrašas[Bendra kaina],Kontrolinis_sąrašas[Kategorija],Kategorija[Kategorija]), \"\")","v":{"v":30,"d":"30.00 EUR"}}]
[null,"Vadovėliai",{"$f":"IFERROR(SUMIFS(Kontrolinis_sąrašas[Bendra kaina],Kontrolinis_sąrašas[Kategorija],Kategorija[Kategorija]), \"\")","v":{"v":55,"d":"55.00 EUR"}}]

{"sheet":"Užduočių sąrašas","index":2,"n_rows":22,"n_cols":3,"rows_kept":22}
[null,"Užduočių sąrašas"]
[null,"Sekite visus veiksmus, kuriuos privalote atlikti iki mokslo metų pradžios."]
[null,"Atlikta","Užduotis"]
[null,"x","Užpildyti visas registracijos formas"]
[null,null,"Jei reikia, suplanuoti mokyklos fizinio parengimo ir vaizdinį egzaminą"]
[null,null,"Patikrinti, ar atlikti visi reikalingi skiepai"]
[null,null,"Gauti iš gydytojo visų reikalingų vaistų pažymas su dozavimo informacija"]
[null,null,"Peržiūrėti mokyklos aprangos taisykles"]
[null,null,"Gauti mokymo priemonių sąrašą"]
[null,null,"Susitikti su mokytoju"]
[null,null,"Nustatyti mokytojo pageidaujamą bendravimo būdą (telefonu, el. paštu, raštu)"]
[null,null,"Surengti išvyką į mokyklą su vaiku"]
[null,null,"Padėti vaikui įsiminti namų, darbo telefono numerį ir namų adresą"]
[null,null,"Organizuoti transportavimą, nustatyti saugią susitikimo vietą ir praktiškai išmokti maršrutą"]
[null,null,"(Jei einate pėsčiomis) Kelis kartus praeiti su vaiku maršrutu iki mokyklos ir atgal"]
[null,null,"(Jei bendrai organizuojate nuvežimą) Supažindinti vaiką su visais vežime dalyvaujančiais vairuotojais"]
[null,null,"(Jei važiuojate autobusu) Nustatyti laiką ir autobusų stoteles"]
[null,null,"Organizuoti vaiko priežiūrą / priežiūrą po mokyklos"]
[null,null,"A planas: pusryčių meniu, užkandžiai mokykloje, supakuoti priešpiečiai ir užkandžiai po mokyklos"]
[null,null,"Nustatyti namų darbų vietą ir tvarkaraštį"]
[null,null,"Nustatyti įprastą miegojimo laiką bent dvi savaites iki mokslo metų pradžios"]
[null,null,"Paruošti visų mokyklos renginių ir veiklų kalendorių"]

{"sheet":"Bendras sąrašas","index":3,"n_rows":4,"n_cols":5,"rows_kept":4}
[null,"Bendras sąrašas",null,null,"Bendrinkite šį sąrašą su kitais, kad jie galėtų prisidėti. Viršuje dešinėje pasirinkite Bendrinti arba paspauskite ALT, tada – YU. Įrašykite failą „OneDrive“ ir išsiųskite saitą draugams."]
[null,"Vardas","El. paštas","Bendrinama?"]
[null,"1 asmuo","kazkas@email.com","Taip"]
[null,"2 asmuo","kazkas@email.com","Ne"]